fUST/lending_fUST_20260505
["ID","MTS","AMOUNT","RATE_DAILY","PERIOD"]
[421619696,1777978239000,-500.0,0.00012328,2]
[421619718,1777978239000,-500.0,0.00012328,2]
[421619688,1777978239000,-500.0,0.00012328,2]
[421619703,1777978239000,-500.0,0.00012328,2]
[421619636,1777978239000,-500.0,0.00012328,2]
[421619642,1777978239000,-500.0,0.00012328,2]
[421619644,1777978239000,-531.72,0.00012328,2]
[421619654,1777978239000,-1276.94,0.00012328,2]
[421619650,1777978239000,-500.0,0.00012328,2]
[421619646,1777978239000,-500.0,0.00012328,2]
[421619656,1777978239000,-500.0,0.00012328,2]
[421619652,1777978239000,-500.0,0.00012328,2]
[421619648,1777978239000,-625.16,0.00012328,2]
[421619658,1777978239000,-570.6,0.00012328,2]
[421619660,1777978239000,-500.0,0.00012328,2]
[421619662,1777978239000,-522.98,0.00012328,2]
[421619664,1777978239000,-1660.3,0.00012328,2]
[421619639,1777978239000,-500.0,0.00012328,2]
[421619678,1777978239000,-500.0,0.00012328,2]
[421619672,1777978239000,-500.0,0.00012328,2]
[421619690,1777978239000,-500.0,0.00012328,2]
[421619692,1777978239000,-500.0,0.00012328,2]
[421619686,1777978239000,-500.0,0.00012328,2]
[421619684,1777978239000,-699.06,0.00012328,2]
[421619682,1777978239000,-1524.9,0.00012328,2]
[421619694,1777978239000,-926.29,0.00012328,2]
[421619676,1777978239000,-500.0,0.00012328,2]
[421619680,1777978239000,-500.0,0.00012328,2]
[421619674,1777978239000,-524.14,0.00012328,2]
[421619666,1777978239000,-500.0,0.00012328,2]
[421619670,1777978239000,-591.16,0.00012328,2]
[421619668,1777978239000,-500.0,0.00012328,2]
[421619787,1777978240000,-500.0,0.00012328,2]
[421619785,1777978240000,-324.25175193,0.00012328,2]
[421619784,1777978240000,-500.0,0.00012328,2]
[421619762,1777978240000,-595.47,0.00012328,2]
[421619789,1777978240000,-1029.42,0.00012328,2]
[421619786,1777978240000,-500.0,0.00012328,2]
[421619791,1777978240000,-1516.75,0.00012328,2]
[421619783,1777978240000,-500.0,0.00012328,2]
[421619788,1777978240000,-500.0,0.00012328,2]
[421619782,1777978240000,-500.0,0.00012328,2]
[421619793,1777978240000,-500.0,0.00012328,2]
[421619790,1777978240000,-500.0,0.00012328,2]
[421619792,1777978240000,-1762.4,0.00012328,2]
[421619806,1777978240000,-750.06,0.00012328,2]
[421619794,1777978240000,-583.03,0.00012328,2]
[421619798,1777978240000,-1445.2,0.00012328,2]
[421619807,1777978240000,-500.0,0.00012328,2]
[421619797,1777978240000,-837.32,0.00012328,2]
[421619796,1777978240000,-455.51555461,0.00012328,2]
[421619799,1777978240000,-500.0,0.00012328,2]
[421619802,1777978240000,-500.0,0.00012328,2]
[421619805,1777978240000,-1160.65,0.00012328,2]
[421619801,1777978240000,-527.89,0.00012328,2]
[421619800,1777978240000,-500.0,0.00012328,2]
[421619808,1777978240000,-2025.81,0.00012328,2]
[421619804,1777978240000,-516.95,0.00012328,2]
[421619760,1777978240000,-507.11401039,0.00012328,2]
[421619795,1777978240000,-562.9,0.00012328,2]
[421619780,1777978240000,-3432.97,0.00012328,2]
[421619740,1777978240000,-500.0,0.00012328,2]
[421619775,1777978240000,-536.56,0.00012328,2]
[421619803,1777978240000,-1563.19,0.00012328,2]
[421619741,1777978240000,-500.0,0.00012328,2]
[421619739,1777978240000,-1277.45,0.00012328,2]
[421619738,1777978240000,-502.8278,0.00012328,2]
[421619736,1777978240000,-500.0,0.00012328,2]
[421619737,1777978240000,-779.2,0.00012328,2]
[421619750,1777978240000,-500.0,0.00012328,2]
[421619743,1777978240000,-791.15,0.00012328,2]
[421619751,1777978240000,-1865.1,0.00012328,2]
[421619742,1777978240000,-500.0,0.00012328,2]
[421619749,1777978240000,-500.0,0.00012328,2]
[421619752,1777978240000,-521.45,0.00012328,2]
[421619754,1777978240000,-824.58,0.00012328,2]
[421619778,1777978240000,-500.0,0.00012328,2]
[421619753,1777978240000,-500.0,0.00012328,2]
[421619745,1777978240000,-500.0,0.00012328,2]
[421619748,1777978240000,-500.0,0.00012328,2]
[421619744,1777978240000,-1187.93,0.00012328,2]
[421619746,1777978240000,-2368.84,0.00012328,2]
[421619755,1777978240000,-689.94,0.00012328,2]
[421619757,1777978240000,-500.0,0.00012328,2]
[421619759,1777978240000,-685.77,0.00012328,2]
[421619756,1777978240000,-500.0,0.00012328,2]
[421619766,1777978240000,-985.07,0.00012328,2]
[421619764,1777978240000,-500.0,0.00012328,2]
[421619768,1777978240000,-500.0,0.00012328,2]
[421619770,1777978240000,-3684.48,0.00012328,2]
[421619772,1777978240000,-500.0,0.00012328,2]
[421619747,1777978240000,-500.0,0.00012328,2]
[421619809,1777978240000,-500.0,0.00012328,2]
[421619876,1777978240000,-500.0,0.00012328,2]
[421619811,1777978240000,-643.92,0.00012328,2]
[421619845,1777978240000,-500.0,0.00012328,2]
[421619846,1777978240000,-500.0,0.00012328,2]
[421619849,1777978240000,-500.0,0.00012328,2]
[421619854,1777978240000,-500.0,0.00012328,2]
[421619852,1777978240000,-500.0,0.00012328,2]
[421619850,1777978240000,-500.0,0.00012328,2]
[421619855,1777978240000,-1158.97,0.00012328,2]
[421619856,1777978240000,-500.0,0.00012328,2]
[421619857,1777978240000,-445.52783597,0.00012328,2]
[421619858,1777978240000,-2964.87,0.00012328,2]
[421619861,1777978240000,-500.0,0.00012328,2]
[421619865,1777978240000,-500.0,0.00012328,2]
[421619862,1777978240000,-500.0,0.00012328,2]
[421619863,1777978240000,-500.0,0.00012328,2]
[421619864,1777978240000,-3712.59,0.00012328,2]
[421619860,1777978240000,-500.0,0.00012328,2]
[421619871,1777978240000,-500.0,0.00012328,2]
[421619869,1777978240000,-500.0,0.00012328,2]
[421619866,1777978240000,-1784.62,0.00012328,2]
[421619868,1777978240000,-500.0,0.00012328,2]
[421619870,1777978240000,-500.0,0.00012328,2]
[421619873,1777978240000,-500.0,0.00012328,2]
[421619872,1777978240000,-5295.13,0.00012328,2]
[421619874,1777978240000,-500.0,0.00012328,2]
[421619875,1777978240000,-500.0,0.00012328,2]
[421619877,1777978240000,-3389.61,0.00012328,2]
[421619810,1777978240000,-3371.74,0.00012328,2]
[421619843,1777978240000,-781.84,0.00012328,2]
[421619842,1777978240000,-500.0,0.00012328,2]
[421619867,1777978240000,-2767.07,0.00012328,2]
[421619844,1777978240000,-500.0,0.00012328,2]
[421619847,1777978240000,-500.0,0.00012328,2]
[421619818,1777978240000,-500.0,0.00012328,2]
[421619820,1777978240000,-597.77,0.00012328,2]
[421619812,1777978240000,-500.0,0.00012328,2]
[421619814,1777978240000,-538.04,0.00012328,2]
[421619819,1777978240000,-500.0,0.00012328,2]
[421619821,1777978240000,-500.0,0.00012328,2]
[421619815,1777978240000,-640.91,0.00012328,2]
[421619823,1777978240000,-500.0,0.00012328,2]
[421619826,1777978240000,-3367.64,0.00012328,2]
[421619830,1777978240000,-500.0,0.00012328,2]
[421619833,1777978240000,-544.00367871,0.00012328,2]
[421619836,1777978240000,-1438.16,0.00012328,2]
[421619827,1777978240000,-1269.77,0.00012328,2]
[421619817,1777978240000,-151.0,0.00012328,2]
[421619835,1777978240000,-501.10097245,0.00012328,2]
[421619838,1777978240000,-835.11,0.00012328,2]
[421619829,1777978240000,-533.45,0.00012328,2]
[421619834,1777978240000,-500.0,0.00012328,2]
[421619832,1777978240000,-688.13,0.00012328,2]
[421619825,1777978240000,-500.0,0.00012328,2]
[421619831,1777978240000,-500.0,0.00012328,2]
[421619824,1777978240000,-500.0,0.00012328,2]
[421619837,1777978240000,-500.0,0.00012328,2]
[421619839,1777978240000,-500.0,0.00012328,2]
[421619841,1777978240000,-703.81,0.00012328,2]
[421619840,1777978240000,-500.0,0.00012328,2]
[421619828,1777978240000,-1158.05,0.00012328,2]
[421619848,1777978240000,-500.0,0.00012328,2]
[421619908,1777978241000,-500.0,0.00012328,2]
[421619904,1777978241000,-1063.95,0.00012328,2]
[421619924,1777978241000,-738.68,0.00012328,2]
[421619902,1777978241000,-500.0,0.00012328,2]
[421619911,1777978241000,-726.95,0.00012328,2]
[421619909,1777978241000,-500.0,0.00012328,2]
[421619907,1777978241000,-500.0,0.00012328,2]
[421619921,1777978241000,-809.97,0.00012328,2]
[421619910,1777978241000,-10045.24,0.00012328,2]
[421619900,1777978241000,-836.04,0.00012328,2]
[421619903,1777978241000,-500.0,0.00012328,2]
[421619905,1777978241000,-3263.95,0.00012328,2]
[421619912,1777978241000,-3163.31,0.00012328,2]
[421619906,1777978241000,-500.0,0.00012328,2]
[421619901,1777978241000,-500.0,0.00012328,2]
[421619899,1777978241000,-540.64,0.00012328,2]
[421619878,1777978241000,-500.0,0.00012328,2]
[421619889,1777978241000,-500.0,0.00012328,2]
[421619913,1777978241000,-500.0,0.00012328,2]
[421619883,1777978241000,-557.16,0.00012328,2]
[421619879,1777978241000,-1142.59,0.00012328,2]
[421619880,1777978241000,-6301.21,0.00012328,2]
[421619882,1777978241000,-1056.4,0.00012328,2]
[421619881,1777978241000,-500.0,0.00012328,2]
[421619884,1777978241000,-2119.83,0.00012328,2]
[421619886,1777978241000,-621.53,0.00012328,2]
[421619888,1777978241000,-500.0,0.00012328,2]
[421619887,1777978241000,-500.0,0.00012328,2]
[421619885,1777978241000,-500.0,0.00012328,2]
[421619893,1777978241000,-500.0,0.00012328,2]
[421619891,1777978241000,-500.0,0.00012328,2]
[421619895,1777978241000,-649.05,0.00012328,2]
[421619890,1777978241000,-1117.42,0.00012328,2]
[421619897,1777978241000,-500.0,0.00012328,2]
[421619916,1777978241000,-3266.89,0.00012328,2]
[421619933,1777978241000,-500.0,0.00012328,2]
[421619914,1777978241000,-500.0,0.00012328,2]
[421619941,1777978241000,-2409.44,0.00012328,2]
[421619937,1777978241000,-500.0,0.00012328,2]
[421619943,1777978241000,-500.0,0.00012328,2]
[421619946,1777978241000,-500.0,0.00012328,2]
[421619942,1777978241000,-1676.77,0.00012328,2]
[421619940,1777978241000,-2908.57,0.00012328,2]
[421619939,1777978241000,-708.65,0.00012328,2]
[421619944,1777978241000,-54611.12,0.00012328,2]
[421619947,1777978241000,-690.6,0.00012328,2]
[421619949,1777978241000,-5752.08,0.00012328,2]
[421619948,1777978241000,-3345.12,0.00012328,2]
[421619950,1777978241000,-500.0,0.00012328,2]
[421619915,1777978241000,-4208.13,0.00012328,2]
[421619952,1777978241000,-7081.00386184,0.00012328,2]
[421619953,1777978241000,-2958.53080738,0.00012328,2]
[421619945,1777978241000,-3812.38,0.00012328,2]
[421619936,1777978241000,-500.0,0.00012328,2]
[421619951,1777978241000,-500.0,0.00012328,2]
[421619935,1777978241000,-500.0,0.00012328,2]
[421619923,1777978241000,-3864.1,0.00012328,2]
[421619920,1777978241000,-817.4,0.00012328,2]
[421619919,1777978241000,-500.0,0.00012328,2]
[421619918,1777978241000,-8967.66,0.00012328,2]
[421619926,1777978241000,-3194.98,0.00012328,2]
[421619930,1777978241000,-2133.61,0.00012328,2]
[421619927,1777978241000,-500.0,0.00012328,2]
[421619917,1777978241000,-2322.07,0.00012328,2]
[421619928,1777978241000,-7204.43,0.00012328,2]
[421619932,1777978241000,-500.0,0.00012328,2]
[421619929,1777978241000,-658.26,0.00012328,2]
[421619922,1777978241000,-9673.21,0.00012328,2]
[421619931,1777978241000,-500.0,0.00012328,2]
[421619934,1777978241000,-1412.67,0.00012328,2]
[421619925,1777978241000,-500.0,0.00012328,2]
[421619938,1777978241000,-2619.6,0.00012328,2]
[421619961,1777978242000,-585.28,0.00012328,2]
[421619954,1777978242000,219.884298,7.787e-05,2]
[421619955,1777978242000,4085.73181049,8.01e-05,2]
[421619957,1777978242000,-152.0,0.00010067,2]
[421619956,1777978242000,-152.0,8.225e-05,7]
[421619959,1777978242000,-928.02533078,0.00012328,2]
[421619958,1777978242000,-152.0,0.00010067,2]
[421619960,1777978242000,-1139.66,0.00012328,2]
[421619963,1777978242000,-500.0,0.00012328,2]
[421619967,1777978242000,-500.06,0.00012328,2]
[421619965,1777978242000,-1917.85952668,0.00012328,2]
[421619966,1777978242000,-185.46279051,0.00012328,2]
[421619968,1777978242000,-87.21423572,0.00012328,2]
[421619964,1777978242000,-0.28768281,0.00012328,2]
[421619962,1777978242000,-500.0,0.00012328,2]
[421620027,1777978246000,-1862.79,0.00012328,2]
[421620029,1777978246000,-500.0,0.00012328,2]
[421620025,1777978246000,-500.0,0.00012328,2]
[421620023,1777978246000,-9520.49788818,0.00012328,2]
[421620034,1777978246000,-3050.25,0.00012328,2]
[421620021,1777978246000,-1495.28211182,0.00012328,2]
[421620032,1777978246000,-500.0,0.00012328,2]
[421620031,1777978246000,-2881.22,0.00012328,2]
[421620036,1777978246000,-500.0,0.00012328,2]
[421620010,1777978246000,-5000.0,0.00012328,2]
[421620012,1777978246000,-1808.99576428,0.00012328,2]
[421620015,1777978246000,-958.32,0.00012328,2]
[421620014,1777978246000,-500.0,0.00012328,2]
[421620038,1777978246000,-536.66,0.00012328,2]
[421620019,1777978246000,-500.0,0.00012328,2]
[421620044,1777978246000,-3412.17,0.00012328,2]
[421620017,1777978246000,-647.31,0.00012328,2]
[421620042,1777978246000,-1340.67,0.00012328,2]
[421620040,1777978246000,-500.0,0.00012328,2]
[421620068,1777978246000,-500.0,0.00012328,2]
[421620069,1777978246000,-8801.27,0.00012328,2]
[421620066,1777978246000,-2744.83,0.00012328,2]
[421620055,1777978246000,-6347.1,0.00012328,2]
[421620051,1777978246000,-377.21882873,0.00012328,2]
[421620064,1777978246000,-500.0,0.00012328,2]
[421620071,1777978246000,-500.0,0.00012328,2]
[421620062,1777978246000,-500.0,0.00012328,2]
[421620049,1777978246000,-1710.42,0.00012328,2]
[421620053,1777978246000,-654.59,0.00012328,2]
[421620048,1777978246000,-500.0,0.00012328,2]
[421620058,1777978246000,-500.0,0.00012328,2]
[421620056,1777978246000,-4184.7,0.00012328,2]
[421620060,1777978246000,-500.0,0.00012328,2]
[421620046,1777978246000,-6193.28,0.00012328,2]
[421620152,1777978247000,-1660.3,0.00012602,2]
[421620154,1777978247000,-500.0,0.00012602,2]
[421620157,1777978247000,-500.0,0.00012602,2]
[421620148,1777978247000,-500.0,0.00012602,2]
[421620140,1777978247000,-500.0,0.00012602,2]
[421620130,1777978247000,-500.0,0.00012602,2]
[421620142,1777978247000,-500.0,0.00012602,2]
[421620128,1777978247000,-500.0,0.00012602,2]
[421620132,1777978247000,-500.0,0.00012602,2]
[421620161,1777978247000,-500.0,0.00012602,2]
[421620146,1777978247000,-570.6,0.00012602,2]
[421620159,1777978247000,-591.16,0.00012602,2]
[421620175,1777978247000,-500.0,0.00012602,2]
[421620163,1777978247000,-524.14,0.00012602,2]
[421620165,1777978247000,-500.0,0.00012602,2]
[421620169,1777978247000,-298.1650017,0.00012602,2]
[421620171,1777978247000,-1524.9,0.00012602,2]
[421620173,1777978247000,-699.06,0.00012602,2]
[421620177,1777978247000,-500.0,0.00012602,2]
[421620134,1777978247000,-531.72,0.00012602,2]
[421620179,1777978247000,-500.0,0.00012602,2]
[421620181,1777978247000,-500.0,0.00012602,2]
[421620183,1777978247000,-926.29,0.00012602,2]
[421620185,1777978247000,-500.0,0.00012602,2]
[421620187,1777978247000,-500.0,0.00012602,2]
[421620167,1777978247000,-500.0,0.00012602,2]
[421620144,1777978247000,-468.33869129,0.00012602,2]
[421620117,1777978247000,-500.0,0.00012602,2]
[421620126,1777978247000,-500.0,0.00012602,2]
[421620073,1777978247000,-500.0,0.00012328,2]
[421620077,1777978247000,-500.0,0.00012328,2]
[421620075,1777978247000,-2031.51,0.00012328,2]
[421620079,1777978247000,-3557.9,0.00012328,2]
[421620084,1777978247000,-4576.94965797,0.0001235,21]
[421620080,1777978247000,-500.0,0.00012328,2]
[421620082,1777978247000,-4568.84095122,0.00012332,2]
[421620086,1777978247000,-160.0,0.000124,3]
[421620090,1777978247000,-500.0,0.00012602,2]
[421620088,1777978247000,-160.0,0.00012535,5]
[421620095,1777978247000,-500.0,0.00012602,2]
[421620093,1777978247000,-500.0,0.00012602,2]
[421620097,1777978247000,-500.0,0.00012602,2]
[421620099,1777978247000,-500.0,0.00012602,2]
[421620109,1777978247000,-523.32395298,0.00012602,2]
[421620113,1777978247000,-2064.0348,0.00012602,2]
[421620111,1777978247000,-2612.3582,0.00012602,2]
[421620103,1777978247000,-500.0,0.00012602,2]
[421620105,1777978247000,-500.0,0.00012602,2]
[421620101,1777978247000,-500.0,0.00012602,2]
[421620115,1777978247000,-584.5499,0.00012602,2]
[421620188,1777978247000,-851.04,0.00012602,2]
[421620107,1777978247000,-500.0,0.00012602,2]
[421620119,1777978247000,-623.33435386,0.00012602,2]
[421620122,1777978247000,-565.71,0.00012602,2]
[421620136,1777978247000,-500.0,0.00012602,2]
[421620124,1777978247000,-605.78,0.00012602,2]
[421620138,1777978247000,-625.16,0.00012602,2]
[421620190,1777978247000,-168.07304268,0.00012602,2]
[421620150,1777978247000,-522.98,0.00012602,2]
[421620192,1777978247000,-500.0,0.00012602,2]
[421620242,1777978247000,-1277.45,0.00012602,2]
[421620261,1777978247000,-685.77,0.00012602,2]
[421620260,1777978247000,-500.0,0.00012602,2]
[421620250,1777978247000,-500.0,0.00012602,2]
[421620249,1777978247000,-2368.84,0.00012602,2]
[421620251,1777978247000,-500.0,0.00012602,2]
[421620256,1777978247000,-500.0,0.00012602,2]
[421620259,1777978247000,-500.0,0.00012602,2]
[421620258,1777978247000,-689.94,0.00012602,2]
[421620252,1777978247000,-254.33778973,0.00012602,2]
[421620255,1777978247000,-521.45,0.00012602,2]
[421620253,1777978247000,-500.0,0.00012602,2]
[421620245,1777978247000,-317.04625274,0.00012602,2]
[421620257,1777978247000,-824.58,0.00012602,2]
[421620267,1777978247000,-500.0,0.00012602,2]
[421620273,1777978247000,-500.0,0.00012602,2]
[421620264,1777978247000,-985.07,0.00012602,2]
[421620268,1777978247000,-500.0,0.00012602,2]
[421620266,1777978247000,-3684.48,0.00012602,2]
[421620270,1777978247000,-500.0,0.00012602,2]
[421620265,1777978247000,-500.0,0.00012602,2]
[421620263,1777978247000,-500.0,0.00012602,2]
[421620272,1777978247000,-500.0,0.00012602,2]
[421620269,1777978247000,-3432.97,0.00012602,2]
[421620271,1777978247000,-500.0,0.00012602,2]
[421620195,1777978247000,-171.29272579,0.00012602,2]
[421620262,1777978247000,-595.47,0.00012602,2]
[421620247,1777978247000,-1187.93,0.00012602,2]
[421620254,1777978247000,-1865.1,0.00012602,2]
[421620244,1777978247000,-500.0,0.00012602,2]
[421620248,1777978247000,-500.0,0.00012602,2]
[421620208,1777978247000,-530.68,0.00012602,2]
[421620218,1777978247000,-500.0,0.00012602,2]
[421620216,1777978247000,-500.0,0.00012602,2]
[421620210,1777978247000,-500.0,0.00012602,2]
[421620214,1777978247000,-500.0,0.00012602,2]
[421620221,1777978247000,-500.0,0.00012602,2]
[421620219,1777978247000,-755.44,0.00012602,2]
[421620231,1777978247000,-500.0,0.00012602,2]
[421620230,1777978247000,-500.0,0.00012602,2]
[421620226,1777978247000,-500.0,0.00012602,2]
[421620233,1777978247000,-500.0,0.00012602,2]
[421620227,1777978247000,-500.0,0.00012602,2]
[421620232,1777978247000,-567.67,0.00012602,2]
[421620212,1777978247000,-570.66,0.00012602,2]
[421620246,1777978247000,-791.15,0.00012602,2]
[421620229,1777978247000,-881.73,0.00012602,2]
[421620243,1777978247000,-500.0,0.00012602,2]
[421620240,1777978247000,-549.81090426,0.00012602,2]
[421620237,1777978247000,-500.0,0.00012602,2]
[421620239,1777978247000,-500.0,0.00012602,2]
[421620241,1777978247000,-779.2,0.00012602,2]
[421620236,1777978247000,-500.0,0.00012602,2]
[421620234,1777978247000,-500.0,0.00012602,2]
[421620222,1777978247000,-500.0,0.00012602,2]
[421620224,1777978247000,-2067.12,0.00012602,2]
[421620235,1777978247000,-662.62,0.00012602,2]
[421620238,1777978247000,-633.6,0.00012602,2]
[421620313,1777978248000,-500.0,0.00012602,2]
[421620314,1777978248000,-688.13,0.00012602,2]
[421620323,1777978248000,-781.84,0.00012602,2]
[421620312,1777978248000,-500.0,0.00012602,2]
[421620310,1777978248000,-1158.05,0.00012602,2]
[421620306,1777978248000,-500.0,0.00012602,2]
[421620308,1777978248000,-3367.64,0.00012602,2]
[421620311,1777978248000,-533.45,0.00012602,2]
[421620307,1777978248000,-500.0,0.00012602,2]
[421620301,1777978248000,-500.0,0.00012602,2]
[421620324,1777978248000,-500.0,0.00012602,2]
[421620309,1777978248000,-1269.77,0.00012602,2]
[421620318,1777978248000,-835.11,0.00012602,2]
[421620322,1777978248000,-500.0,0.00012602,2]
[421620319,1777978248000,-500.0,0.00012602,2]
[421620315,1777978248000,-500.0,0.00012602,2]
[421620316,1777978248000,-1438.16,0.00012602,2]
[421620317,1777978248000,-500.0,0.00012602,2]
[421620320,1777978248000,-500.0,0.00012602,2]
[421620326,1777978248000,-500.0,0.00012602,2]
[421620336,1777978248000,-2767.07,0.00012602,2]
[421620327,1777978248000,-500.0,0.00012602,2]
[421620325,1777978248000,-500.0,0.00012602,2]
[421620328,1777978248000,-242.12889782,0.00012602,2]
[421620335,1777978248000,-1784.62,0.00012602,2]
[421620329,1777978248000,-276.1101858,0.00012602,2]
[421620321,1777978248000,-703.81,0.00012602,2]
[421620303,1777978248000,-597.77,0.00012602,2]
[421620331,1777978248000,-2964.87,0.00012602,2]
[421620304,1777978248000,-500.0,0.00012602,2]
[421620275,1777978248000,-500.0,0.00012602,2]
[421620287,1777978248000,-527.89,0.00012602,2]
[421620285,1777978248000,-500.0,0.00012602,2]
[421620286,1777978248000,-500.0,0.00012602,2]
[421620274,1777978248000,-500.0,0.00012602,2]
[421620277,1777978248000,-500.0,0.00012602,2]
[421620276,1777978248000,-1029.42,0.00012602,2]
[421620284,1777978248000,-1445.2,0.00012602,2]
[421620283,1777978248000,-837.32,0.00012602,2]
[421620278,1777978248000,-1516.75,0.00012602,2]
[421620279,1777978248000,-1762.4,0.00012602,2]
[421620281,1777978248000,-583.03,0.00012602,2]
[421620280,1777978248000,-500.0,0.00012602,2]
[421620282,1777978248000,-562.9,0.00012602,2]
[421620288,1777978248000,-500.0,0.00012602,2]
[421620293,1777978248000,-500.0,0.00012602,2]
[421620294,1777978248000,-2025.81,0.00012602,2]
[421620289,1777978248000,-1563.19,0.00012602,2]
[421620292,1777978248000,-750.06,0.00012602,2]
[421620291,1777978248000,-1160.65,0.00012602,2]
[421620290,1777978248000,-516.95,0.00012602,2]
[421620296,1777978248000,-3371.74,0.00012602,2]
[421620297,1777978248000,-643.92,0.00012602,2]
[421620299,1777978248000,-538.04,0.00012602,2]
[421620300,1777978248000,-640.91,0.00012602,2]
[421620298,1777978248000,-500.0,0.00012602,2]
[421620295,1777978248000,-500.0,0.00012602,2]
[421620305,1777978248000,-500.0,0.00012602,2]
[421620334,1777978248000,-500.0,0.00012602,2]
[421620302,1777978248000,-500.0,0.00012602,2]
[421620330,1777978248000,-1158.97,0.00012602,2]
[421620366,1777978248000,-500.0,0.00012602,2]
[421620365,1777978248000,-500.0,0.00012602,2]
[421620373,1777978248000,-500.0,0.00012602,2]
[421620367,1777978248000,-500.0,0.00012602,2]
[421620368,1777978248000,-1063.95,0.00012602,2]
[421620369,1777978248000,-3263.95,0.00012602,2]
[421620370,1777978248000,-500.0,0.00012602,2]
[421620371,1777978248000,-500.0,0.00012602,2]
[421620375,1777978248000,-726.95,0.00012602,2]
[421620386,1777978248000,-5943.31095949,0.00012602,2]
[421620385,1777978248000,-809.97,0.00012602,2]
[421620374,1777978248000,-10045.24,0.00012602,2]
[421620376,1777978248000,-3163.31,0.00012602,2]
[421620378,1777978248000,-500.0,0.00012602,2]
[421620379,1777978248000,-4208.13,0.00012602,2]
[421620377,1777978248000,-500.0,0.00012602,2]
[421620383,1777978248000,-500.0,0.00012602,2]
[421620381,1777978248000,-2322.07,0.00012602,2]
[421620382,1777978248000,-8967.66,0.00012602,2]
[421620380,1777978248000,-3266.89,0.00012602,2]
[421620387,1777978248000,-500.0,0.00012328,2]
[421620389,1777978248000,-3864.1,0.00012602,2]
[421620388,1777978248000,-3729.89904051,0.00012602,2]
[421620390,1777978248000,-738.68,0.00012602,2]
[421620393,1777978248000,-2685.27479381,0.00012602,2]
[421620391,1777978248000,-500.0,0.00012602,2]
[421620333,1777978248000,-500.0,0.00012602,2]
[421620392,1777978248000,-509.70520619,0.00012602,2]
[421620363,1777978248000,-540.64,0.00012602,2]
[421620384,1777978248000,-817.4,0.00012602,2]
[421620364,1777978248000,-836.04,0.00012602,2]
[421620372,1777978248000,-500.0,0.00012602,2]
[421620339,1777978248000,-500.0,0.00012602,2]
[421620341,1777978248000,-5295.13,0.00012602,2]
[421620340,1777978248000,-500.0,0.00012602,2]
[421620338,1777978248000,-500.0,0.00012602,2]
[421620344,1777978248000,-500.0,0.00012602,2]
[421620343,1777978248000,-500.0,0.00012602,2]
[421620337,1777978248000,-500.0,0.00012602,2]
[421620342,1777978248000,-500.0,0.00012602,2]
[421620348,1777978248000,-1142.59,0.00012602,2]
[421620332,1777978248000,-500.0,0.00012602,2]
[421620346,1777978248000,-3389.61,0.00012602,2]
[421620347,1777978248000,-258.76811463,0.00012602,2]
[421620345,1777978248000,-500.0,0.00012602,2]